[Event "1000GM Memorial Day NY IM-B 2023"]
[Site "New York"]
[Date "2023.05.27"]
[Round "4.2"]
[White "Ansh M Shah"]
[Black "Espinosa, Pedro"]
[Result "0-1"]
[ECO "D23"]
[WhiteElo "2171"]
[BlackElo "2229"]
[Annotator "TA"]
[PlyCount "128"]
[EventDate "2023.05.23"]
[EventType "schev"]
[EventCountry "USA"]
[SourceTitle "playchess.com"]
[Source "ChessBase"]
[SourceQuality "1"]
[TimeControl "5400+30"]

{[%evp 18,128,11,0,-7,0,36,43,35,-22,-17,-20,-14,-29,-17,-32,0,0,0,0,53,31,50,43,68,61,62,49,108,-9,-10,-27,-16,-14,6,-13,-31,-96,-85,-142,-141,-141,-142,-130,-133,-127,-124,-118,-72,-72,-65,-65,-72,-73,-26,-35,0,-28,50,137,141,-8,0,0,0,-165,-156,-194,-167,-193,-183,-894,-921,-857,-841,-3036,-3010,-2313,-2375,-2931,-2599,-1673,-1529,-29963,-29964,-29964,-29962,-29969,-29973,-29950,-9793,-29979,-29980,-29980,-29978,-29982,-29983,-29983,-29980,-29980,-29981,-29981,-29982,-29982,-29983,-29983,-29985,-29985,-29985,-29985,-29986,-29987,-29988]} 1. d4 {[%emt 0:00:02]} d5 {[%emt 0:00:16]} 2. c4 {[%emt 0:00:07]} c6 {[%emt 0:00:05]} 3. Nf3 {[%emt 0:00:05]} Nf6 {[%emt 0:00:16]} 4. Qb3 {[%emt 0:00:05]} dxc4 {[%emt 0:00:51]} 5. Qxc4 {[%emt 0:00:03]} Bf5 {[%emt 0:00:35]} 6. g3 {[%emt 0:00:44]} e6 {[%emt 0:01:16]} 7. Bg2 {[%emt 0:00:13]} Nbd7 {[%emt 0:01:35]} 8. O-O {[%emt 0:00:27]} Be7 {[%emt 0:01:04]} 9. Nc3 {[%emt 0:00:36]} O-O {[%emt 0:01:40]} 10. Bf4 {[%emt 0:07:22] 10.e3 is a critical line.} h6 {[%emt 0:05:38] D23: Queen's Gambit Accepted: 3 Nf3 Nf6 sidelines.} 11. Rac1 {[%emt 0:02:24]} Qb6 {[%emt 0:08:22]} 12. Na4 $1 {[%emt 0:06:28]} Qa5 {[%emt 0:02:55] White is slightly better.} 13. Bd2 {[%emt 1:18:24] [#]} ({White should play} 13. Nc5 $14) 13... Qd5 $146 {[%emt 0:02:57] aiming for ...Qxc4.} ({Predecessor:} 13... Qd8 14. Qb3 b5 15. Nc3 a6 16. Nh4 Rc8 17. Nxf5 exf5 18. Qc2 c5 19. Qxf5 cxd4 {1-0 Dolezal,R (2377)-Serrano Salvador,E (2263) CZE-chT1W 2122 2021 (2.4)}) 14. Nc5 {[%emt 0:00:00]} Nxc5 {[%emt 0:03:34]} 15. dxc5 {[%emt 0:00:00]} Be4 {[%emt 0:04:24] Threatens to win with ...Bxf3.} 16. Qxd5 {[%emt 0:00:00]} Nxd5 {[%emt 0:03:38]} 17. Ne5 {[%emt 0:00:00][%cal Bf3e5,Be5c4,Bc4d6][%mdl 32]} Bxg2 {[%emt 0:05:23]} 18. Kxg2 {[%emt 0:00:00]} Bf6 {[%emt 0:03:02]} (18... a5 $11) 19. Nc4 $14 {[%emt 0:00:00]} Rfd8 {[%emt 0:02:33][%cal Bf8d8,Bd8d4,Bd4a4,Ba4a3,Ba3a2,Ba2h2][%mdl 32]} 20. e4 {[%emt 0:00:00]} Ne7 {[%emt 0:15:26]} 21. Ba5 {[%emt 0:00:00]} Rd4 {[%emt 0:01:30]} 22. Rfe1 {[%emt 0:00:00]} Nc8 {[%emt 0:05:04]} (22... Ng6 $14) 23. Kf3 {[%emt 0:00:00]} (23. b3 $16) 23... b5 {[%emt 0:04:13]} 24. Nd6 {[%emt 0:00:32]} Ra4 {[%emt 0:04:13]} ({Resist} 24... Nxd6 25. cxd6 Be5 26. Bc3 (26. Rxc6 Rd3+ {[%mdl 64] Discovered Attack} 27. Re3 Rxd6 $14) 26... Rd3+ 27. Ke2 Bxc3 28. Kxd3 Bxe1 29. Rxe1 $16) 25. b4 {[%emt 0:00:48]} Ra3+ {[%emt 0:01:11]} 26. Re3 {[%emt 0:00:57]} Rxa2 {[%emt 0:00:17]} 27. Rd3 {[%emt 0:00:16]} (27. Re2 $15 Ra3+ 28. Kg2) 27... Ne7 $36 {[%emt 0:00:52][%mdl 2048] Black has strong initiative.} 28. Ke3 {[%emt 0:01:29]} (28. Kg2 $142) 28... Ng6 {[%emt 0:01:27]} 29. f4 {[%emt 0:01:28] Prevents Ne5} Rxh2 {[%emt 0:01:14][%cal Og6e5]} 30. Rcd1 {[%emt 0:00:26]} h5 {[%emt 0:00:42]} 31. R1d2 {[%emt 0:01:28]} Rh3 {[%emt 0:01:22]} 32. Kf3 {[%emt 0:00:34]} h4 {[%emt 0:00:01]} ({Better is} 32... Nh4+ $1 33. Kf2 Rh2+ 34. Kf1 Rh1+ 35. Kf2 Ng6) 33. Kg2 {[%emt 0:00:34]} Rxg3+ {[%emt 0:00:25]} 34. Rxg3 {[%emt 0:00:01]} hxg3 {[%emt 0:00:30]} 35. Kxg3 {[%emt 0:00:02]} e5 {[%emt 0:01:42]} (35... Rb8 $17) 36. f5 $11 {[%emt 0:00:22]} Nf4 {[%emt 0:00:27]} 37. Kf3 {[%emt 0:01:03]} g5 {[%emt 0:00:37]} (37... g6 $11) 38. Nb7 $1 $14 {[%emt 0:00:55]} Kg7 {[%emt 0:01:02] [#] ...Rh8 would be deadly.} 39. Bd8 {[%emt 0:00:52]} (39. Nd8 $1 $16) 39... Bxd8 $11 {[%emt 0:05:03]} 40. Nxd8 {[%emt 0:00:55][%mdl 4096] Endgame KRN-KRN} a5 $1 {[%emt 0:00:36]} 41. bxa5 {[%emt 0:00:09] White is on the road to losing.} (41. Rd7 $11 {and White is okay.} Nh5 42. Nxf7 g4+ 43. Ke3) 41... Rxa5 $19 {[%emt 0:00:15] ...Ra3+ is the strong threat.} 42. Rd7 {[%emt 0:00:15] [#]} Ra3+ $1 {[%emt 0:01:39]} 43. Kg4 {[%emt 0:00:16]} Rd3 {[%emt 0:00:01]} 44. Rxd3 {[%emt 0:01:34]} (44. Rxf7+ Kg8 45. Rc7 Rxd8 46. Rxc6) 44... Nxd3 {[%emt 0:00:08]} 45. Nxc6 {[%emt 0:00:29]} Nxc5 {[%emt 0:01:45]} 46. Nxe5 {[%emt 0:00:31]} Nxe4 {[%emt 0:00:27] And now ...b4 would win. KN-KN} 47. Kf3 {[%emt 0:00:04]} Nd6 {[%emt 0:00:17] Hoping for ...Kf6.} 48. Kg4 {[%emt 0:00:49]} f6 {[%emt 0:00:26]} 49. Nc6 {[%emt 0:00:12]} Nc4 {[%emt 0:00:18]} 50. Nd4 {[%emt 0:00:18]} b4 {[%emt 0:00:31][%cal Bb5b4,Bb4b3][%mdl 32]} 51. Kf3 {[%emt 0:00:08]} Nd6 {[%emt 0:00:43]} 52. Ke3 {[%emt 0:00:35]} Kh6 {[%emt 0:00:26]} 53. Kd3 {[%emt 0:00:08]} g4 {[%emt 0:00:44] ( -> ...g3)} 54. Nc6 {[%emt 0:00:16]} b3 {[%emt 0:00:30] Black mates.} 55. Nd4 {[%emt 0:00:16]} g3 {[%emt 0:00:46]} 56. Nf3 {[%emt 0:00:25]} Nxf5 {[%emt 0:00:37]} 57. Kc3 {[%emt 0:00:04]} g2 {[%emt 0:00:20]} 58. Ng1 {[%emt 0:00:06]} Kg5 {[%emt 0:00:44]} 59. Kxb3 {[%emt 0:00:05]} Kg4 {[%emt 0:00:12]} 60. Kc4 {[%emt 0:00:26]} Nh4 {[%emt 0:00:22]} 61. Kd5 {[%emt 0:00:36]} Nf3 {[%emt 0:00:35]} 62. Ne2 {[%emt 0:00:05]} g1=Q {[%emt 0:00:15]} 63. Nxg1 {[%emt 0:00:03]} Nxg1 {[%emt 0:00:14]} 64. Ke6 {[%emt 0:00:02]} f5 {[%emt 0:00:11] Weighted Error Value: White=0.74/Black=0.16 (very precise)} 0-1

[Event "1000GM Memorial Day NY IM-B 2023"]
[Site "New York"]
[Date "2023.05.27"]
[Round "4.3"]
[White "Pang, Qi"]
[Black "Hebbar, Eshaan"]
[Result "1-0"]
[ECO "E04"]
[WhiteElo "2165"]
[BlackElo "1969"]
[Annotator "TA"]
[PlyCount "131"]
[EventDate "2023.05.23"]
[EventType "schev"]
[EventCountry "USA"]
[SourceTitle "playchess.com"]
[Source "ChessBase"]
[SourceQuality "1"]
[TimeControl "5400+30"]

{[%evp 22,131,40,58,57,64,87,89,89,92,92,92,102,103,93,83,83,83,83,81,88,84,87,68,80,43,119,93,125,118,122,117,121,103,117,94,106,100,110,99,118,109,139,139,145,137,147,155,162,183,182,184,170,180,228,0,199,192,209,181,239,231,225,225,231,220,250,232,261,267,277,257,257,245,257,252,362,362,435,429,433,422,714,677,733,724,1476,402,356,0,859,604,568,509,1364,0,456,0,1514,1523,1523,1486,1364,1364,1320,1308,1272,1256,1162,1151,1010,989]} 1. Nf3 {[%emt 0:00:07]} d5 {[%emt 0:00:07]} 2. g3 {[%emt 0:00:05]} c5 {[%emt 0:00:08]} 3. Bg2 {[%emt 0:00:03]} Nf6 {[%emt 0:00:13]} 4. O-O {[%emt 0:00:06]} Nc6 {[%emt 0:01:04]} 5. d4 {[%emt 0:00:04]} e6 {[%emt 0:00:49]} 6. c4 {[%emt 0:00:10]} dxc4 {[%emt 0:01:50]} 7. Qa4 {[%emt 0:00:17]} cxd4 {[%emt 0:04:26]} 8. Nxd4 {[%emt 0:00:21]} Qxd4 {[%emt 0:02:00]} 9. Bxc6+ {[%emt 0:00:04]} Bd7 {[%emt 0:00:09]} 10. Rd1 {[%emt 0:00:25][%cal Bf1d1,Bd1d4,Bd4c4][%mdl 32]} Bxc6 {[%emt 0:00:34] 10...Qxd1+ is vanishing.} 11. Qxc6+ {[%emt 0:00:07]} bxc6 {[%emt 0:00:04]} 12. Rxd4 {[%emt 0:00:03]} Nd5 {[%emt 0:02:26] E04: Open Catalan: 5 Nf3.} 13. Rxc4 {[%emt 0:01:31]} Kd7 {[%emt 0:02:07]} 14. e4 {[%emt 0:09:19]} Nb6 {[%emt 0:01:26] White is better.} 15. Rc2 {[%emt 0:00:16] [#]} Be7 $146 {[%emt 0:01:33]} ({Predecessor:} 15... f5 16. f3 fxe4 17. fxe4 Bd6 18. Be3 Rhc8 19. Nd2 e5 20. Rd1 Ke6 21. Rdc1 Kd7 {1-0 Krush,I (2489)-Zatonskih,A (2469) USA-ch (Women) 2014 (8)}) 16. Be3 {[%emt 0:01:41]} Rab8 {[%emt 0:15:56]} 17. Nd2 {[%emt 0:01:50][%cal Bb1d2,Bd2c4,Bc4b2,Bb2d3,Bd3b4,Bb4d5][%mdl 32]} Rhc8 {[%emt 0:01:42]} 18. Rd1 {[%emt 0:09:13]} Ke8 {[%emt 0:02:57]} 19. Rdc1 {[%emt 0:01:49][%cal Oe3f4]} Nd7 {[%emt 0:09:15]} 20. Nc4 {[%emt 0:11:12]} (20. Rxc6 $6 Rxc6 21. Rxc6 Rxb2 $11) 20... c5 {[%emt 0:03:44]} 21. b3 {[%emt 0:05:02]} Rc6 {[%emt 0:02:50]} 22. Nb2 {[%emt 0:10:05]} Rbc8 {[%emt 0:04:24]} 23. Nd3 {[%emt 0:02:20]} e5 {[%emt 0:05:58]} ({Better is} 23... Ra6 $14) 24. Kf1 {[%emt 0:03:47]} f6 {[%emt 0:02:42] [#]} 25. Nb4 $1 {[%emt 0:15:25][%mdl 512]} Re6 {[%emt 0:01:55]} (25... Rb6 26. Nd5) 26. Nd5 {[%emt 0:00:14]} Bf8 {[%emt 0:00:52]} 27. g4 {[%emt 0:03:06]} Rec6 {[%emt 0:02:13]} 28. Ke2 {[%emt 0:00:46]} g6 {[%emt 0:07:01]} 29. f3 {[%emt 0:01:25]} Kf7 {[%emt 0:00:53]} 30. h3 {[%emt 0:00:52]} a6 {[%emt 0:00:42]} 31. Rc4 {[%emt 0:00:22]} Ke6 {[%emt 0:01:15] [#]} 32. Nb4 $1 {[%emt 0:00:40][%mdl 512] White is much more active.} Rb6 {[%emt 0:00:44]} 33. Nd3 {[%emt 0:00:09]} Rbc6 {[%emt 0:00:21]} 34. b4 {[%emt 0:00:53]} Nb6 {[%emt 0:02:09]} 35. Nxc5+ {[%emt 0:00:34]} Kf7 {[%emt 0:00:01]} 36. R4c3 {[%emt 0:02:54]} Nd7 {[%emt 0:02:53]} 37. Kd3 {[%emt 0:07:29] Black is weak on the light squares} Rd8 {[%emt 0:04:42]} (37... Nxc5+ $142 38. bxc5 a5) 38. Ke2 $2 {[%emt 0:00:54]} (38. Nb7 $18 Rxc3+ {[%mdl 64] Remove Defender} 39. Rxc3 (39. Kxc3 Rb8 $16) 39... Nc5+ {[%mdl 64] Discovered Attack (Double check)} 40. Ke2 Nxb7 41. Rc7+ {[%mdl 64] Skewer, Double Attack} Be7 42. Rxb7) 38... Nxc5 $2 {[%emt 0:01:33]} (38... Rdc8 $1 $11 {and Black has nothing to worry.}) 39. Bxc5 $18 {[%emt 0:00:07]} (39. bxc5 $6 Rdc8 $16) 39... Rdc8 {[%emt 0:00:06]} 40. a3 {[%emt 0:02:20]} a5 {[%emt 0:03:03]} (40... Bh6 $142) 41. Kd3 {[%emt 0:02:55][%cal Be2d3,Bd3c2,Bc2c3,Bc3b3,Bb3c4,Bc4b5][%mdl 32] And now Bxf8 would win.} Rd8+ {[%emt 0:04:01]} 42. Kc2 {[%emt 0:01:15] Hoping for Bxf8.} axb4 {[%emt 0:00:47]} 43. Bxb4 {[%emt 0:01:02]} (43. axb4 $6 Bxc5 44. Rxc5 Rxc5+ 45. bxc5 Ke8) 43... Rxc3+ {[%emt 0:03:08]} 44. Kxc3 {[%emt 0:00:16][%mdl 4096] Endgame KRB-KRB} Bh6 {[%emt 0:00:01]} 45. Rc2 {[%emt 0:01:08]} Rd1 {[%emt 0:00:45]} 46. Kb3 {[%emt 0:00:40]} Rb1+ {[%emt 0:01:41]} (46... Rd3+ $2 47. Rc3 Rd1 48. a4 $18) 47. Kc4 {[%emt 0:00:35]} Be3 {[%emt 0:00:42]} 48. a4 {[%emt 0:01:15]} Ra1 {[%emt 0:00:31]} (48... Ke8 $142 49. a5 Kd7) 49. Kb5 {[%emt 0:00:22]} h5 {[%emt 0:00:25]} 50. Rc7+ {[%emt 0:02:13]} Kg8 {[%emt 0:00:10]} 51. gxh5 {[%emt 0:00:06]} gxh5 {[%emt 0:00:04]} (51... Rb1 $142 52. hxg6 Bd2) 52. a5 {[%emt 0:00:11]} h4 {[%emt 0:00:47]} 53. a6 {[%emt 0:00:19] aiming for Rc3.} Bd4 {[%emt 0:01:26] Repels Rc3} 54. Rb7 {[%emt 0:01:34]} (54. Bc5 $142 {Black must now prevent Bxd4.} Rb1+ 55. Kc6) 54... Rb1 {[%emt 0:00:34]} 55. Rc7 $2 {[%emt 0:01:03]} ({White should play} 55. Rd7 $18 {[%cal Od7d4] White threatens Rxd4! and mate.} Be3 56. a7 Bxa7 57. Rxa7) 55... Rb2 $2 {[%emt 0:00:53][%mdl 8192]} (55... Ra1 $11 56. Bc5 Rb1+ 57. Kc4 Rc1+ 58. Kd5 Bxc5) 56. Rc4 {[%emt 0:00:26][%cal Oc4d4]} Be3 {[%emt 0:00:36]} 57. Rc3 {[%emt 0:02:03]} Bd2 {[%emt 0:01:03]} (57... Bf2 $142 58. Kc4 Bd4) 58. Rc4 {[%emt 0:00:05]} (58. a7 $142 Bxc3 59. a8=Q+ (59. a8=B Rxb4+ 60. Kc6 Rb8 $19) 59... Kf7 60. Qa3 Rxb4+ 61. Kc5) 58... Be3 {[%emt 0:00:04]} 59. Rc3 {[%emt 0:00:05]} ({Weaker is} 59. Rc7 Bd2 $18) (59. Kc6 $142) 59... Bd2 $1 {[%emt 0:00:04]} 60. a7 {[%emt 0:01:07] White is clearly winning.} Bxc3 {[%emt 0:01:09]} 61. a8=Q+ {[%emt 0:00:07]} (61. a8=B $2 {is the wrong capture.} Rxb4+ 62. Kc5 Kf7 $19) 61... Kh7 {[%emt 0:01:26]} 62. Qa7+ {[%emt 0:00:17]} Kg6 {[%emt 0:00:14]} 63. Kc4 {[%emt 0:00:10] Bf8 would kill now.} Bxb4 {[%emt 0:00:27]} 64. Qa1 {[%emt 0:00:05][%mdl 64] Deflection} Rg2 {[%emt 0:01:09]} 65. Kxb4 {[%emt 0:00:04]} Rg3 {[%emt 0:00:16]} 66. Qf1 {[%emt 0:01:34] Weighted Error Value: White=0.64/Black=0.25 (precise)} 1-0

[Event "1000GM Memorial Day NY IM-B 2023"]
[Site "New York"]
[Date "2023.05.27"]
[Round "4.4"]
[White "Barbosa, Oliver"]
[Black "Luo, Terry"]
[Result "1-0"]
[ECO "E60"]
[WhiteElo "2492"]
[BlackElo "2321"]
[Annotator "TA"]
[PlyCount "85"]
[EventDate "2023.05.23"]
[EventType "schev"]
[EventCountry "USA"]
[SourceTitle "playchess.com"]
[Source "ChessBase"]
[SourceQuality "1"]
[TimeControl "5400+30"]

{[%evp 13,85,25,12,0,6,0,-9,-35,0,0,0,0,0,0,0,-2,0,9,0,0,28,25,8,18,93,61,63,50,87,83,177,141,133,140,125,135,136,139,127,142,140,130,151,134,164,141,150,134,145,122,219,121,129,85,128,97,163,160,163,154,165,69,1025,1032,826,1026,1019,1022,970,982,958,958,2266,2266]} 1. Nf3 {[%emt 0:03:27]} Nf6 {[%emt 0:00:13]} 2. c4 {[%emt 0:00:36]} g6 {[%emt 0:00:15]} 3. b3 {[%emt 0:01:26]} Bg7 {[%emt 0:00:28]} 4. Bb2 {[%emt 0:00:06]} d6 {[%emt 0:00:46]} 5. d4 {[%emt 0:01:19]} O-O {[%emt 0:01:13]} 6. g3 {[%emt 0:01:08]} Nbd7 {[%emt 0:02:01] 6...e5 injects fresh life into this line.} 7. Bg2 {[%emt 0:00:50]} e5 {[%emt 0:00:23]} 8. e3 {[%emt 0:07:51] E60: King's Indian: Unusual lines and Fianchetto Variation without Nc3.} Re8 {[%emt 0:12:48]} 9. Nc3 {[%emt 0:00:11]} c6 {[%emt 0:01:39]} 10. Qc2 {[%emt 0:03:06] The position is equal.} Nf8 {[%emt 0:03:33]} (10... e4 $5 {[%cal Re4f3]} 11. Nd2 Nb6 $14) 11. dxe5 {[%emt 0:03:45]} dxe5 {[%emt 0:00:23]} 12. Rd1 {[%emt 0:00:45]} Qa5 {[%emt 0:07:45]} 13. O-O {[%emt 0:02:23]} Bf5 {[%emt 0:00:36] [#]} 14. Qc1 $146 {[%emt 0:00:20]} ({Predecessor:} 14. e4 Bg4 15. h3 Bxf3 16. Bxf3 Ne6 17. Ne2 Rad8 18. Bg2 Qc7 19. Rxd8 Rxd8 20. Rd1 {½-½ Redolfi,A (2500)-Kujala,A (2645) FIN jub30-B corr9196 1991}) 14... e4 {[%emt 0:16:42]} 15. Nd2 {[%emt 0:00:57]} h5 {[%emt 0:05:13]} 16. c5 {[%emt 0:17:44]} Qc7 {[%emt 0:09:03]} 17. Nc4 {[%emt 0:00:26]} Bg4 {[%emt 0:01:24]} 18. Rd2 {[%emt 0:01:52]} N8h7 {[%emt 0:09:38]} (18... Ne6 $11 {remains equal.}) 19. h3 {[%emt 0:01:10]} Bf3 {[%emt 0:02:14]} 20. Nd6 {[%emt 0:00:40]} Re7 {[%emt 0:01:00]} 21. h4 {[%emt 0:03:58]} g5 {[%emt 0:06:17]} (21... Rd8 $16) 22. Bxf3 {[%emt 0:01:58]} exf3 {[%emt 0:00:01]} 23. Qd1 {[%emt 0:00:13]} gxh4 {[%emt 0:00:56]} 24. gxh4 {[%emt 0:05:56]} (24. Qxf3 Ng5 25. Qh1 (25. Qf5 Re5 $11) 25... Qd7) 24... Ng4 {[%emt 0:04:07]} 25. Qxf3 {[%emt 0:00:41]} Re6 {[%emt 0:00:08]} 26. Nce4 {[%emt 0:01:47] Bxg7 is the strong threat.} Bxb2 {[%emt 0:00:48]} 27. Rxb2 {[%emt 0:00:20]} Rg6 {[%emt 0:00:10] Hoping for ...Ne5+.} 28. Ng3 {[%emt 0:05:33]} Qe7 {[%emt 0:00:58]} 29. Rd1 {[%emt 0:03:11]} (29. Nxh5 $2 Ne5+ $19) 29... Rf8 {[%emt 0:01:28]} 30. Kg2 {[%emt 0:09:03]} (30. Nxh5 $2 {perishes.} Ne5+ $19) 30... Nhf6 {[%emt 0:01:58]} 31. e4 {[%emt 0:04:40]} Ne5 {[%emt 0:02:05] [#]} (31... Kh7 $16) 32. Ndf5 {[%emt 0:01:55]} (32. Qc3 $1 $18) 32... Qxc5 $16 {[%emt 0:01:19]} 33. Qf4 {[%emt 0:00:04] Strongly threatening b4.} Re8 {[%emt 0:01:41]} 34. Rbd2 {[%emt 0:01:04]} Neg4 {[%emt 0:01:11]} (34... Kh7 $16 {was called for.}) 35. Rd8 $18 {[%emt 0:00:18] Active counter play!} Rxd8 {[%emt 0:00:02]} 36. Rxd8+ {[%emt 0:00:08]} Kh7 {[%emt 0:00:02][%cal Of6e4] [#]} 37. Nd6 {[%emt 0:01:48]} (37. Rb8 $1 $18 {[%cal Rb8b7]} Nxe4 38. Rxb7 (38. Nxe4 Qxf5 {[%mdl 64] Remove Defender, Decoy} 39. Qxf5 Ne3+ 40. Kh3 Nxf5 $16) 38... Qxf2+ 39. Qxf2 Ngxf2 40. Rxf7+ (40. Rxa7 Rf6 $16) 40... Kh8 41. Kf3 (41. Rxa7 Nxg3 42. Ne7 Rf6 $16) 41... Nxg3 42. Nxg3) 37... Qe5 $2 {[%emt 0:05:39][%mdl 8192] [#] Black cannot hold the game after this.} (37... Ne5 $14) 38. Rh8+ $3 {[%emt 0:01:49][%mdl 576] Decoy. White is clearly winning.} Kg7 {[%emt 0:00:01]} 39. Ngf5+ {[%emt 0:01:46]} Kxh8 {[%emt 0:00:04]} 40. Nxf7+ {[%emt 0:00:07]} Kh7 {[%emt 0:00:03]} 41. Nxe5 {[%emt 0:14:39]} Nxe5+ {[%emt 0:00:12]} 42. Kf1 {[%emt 0:00:00]} Nf7 {[%emt 0:00:25]} 43. Qc7 {[%emt 0:00:00][%csl LRb7,LRf7] Ingenious play by Barbosa!   Weighted Error Value: White=0.17 (very precise) /Black=0.23 (precise)} 1-0

[Event "1000GM Memorial Day NY IM-B 2023"]
[Site "New York"]
[Date "2023.05.27"]
[Round "4.5"]
[White "Nagy, Gabor"]
[Black "Bisiriyu-Salam, Oluwaseun"]
[Result "1-0"]
[ECO "A50"]
[WhiteElo "2468"]
[BlackElo "2011"]
[Annotator "TA"]
[PlyCount "95"]
[EventDate "2023.05.23"]
[EventType "schev"]
[EventCountry "USA"]
[SourceTitle "playchess.com"]
[Source "ChessBase"]
[SourceQuality "1"]
[TimeControl "5400+30"]

{[%evp 9,95,70,76,79,73,69,79,59,65,31,41,37,64,57,83,72,72,60,102,57,48,28,56,43,121,53,41,57,37,23,47,47,102,77,79,60,68,45,52,46,52,45,57,52,106,58,57,0,54,50,121,133,152,146,136,140,140,126,131,50,56,41,72,47,174,172,167,174,179,206,264,260,355,344,364,379,370,365,346,243,492,499,464,475,412,350,642,642]} 1. c4 {[%emt 0:05:48]} Nf6 {[%emt 0:03:54]} 2. Nc3 {[%emt 0:00:20]} e6 {[%emt 0:00:12]} 3. Nf3 {[%emt 0:00:20]} b6 {[%emt 0:01:28]} 4. e4 {[%emt 0:01:04]} d6 {[%emt 0:01:32]} 5. d4 {[%emt 0:00:41]} Be7 {[%emt 0:01:49]} 6. Bd3 {[%emt 0:01:01] A50: Queen's Fianchetto Defence (1 d4 Nf6 2 c4 b6).} Bb7 {[%emt 0:01:17]} 7. O-O {[%emt 0:02:00]} O-O {[%emt 0:00:29]} 8. e5 {[%emt 0:02:43] White is better.} Nfd7 {[%emt 0:02:16] [#]} 9. Bc2 $146 {[%emt 0:03:03]} ({Predecessor:} 9. Qe2 h6 10. Bc2 Re8 11. Bf4 Nf8 12. Rad1 c6 13. exd6 Bxd6 14. Ne5 Qh4 15. g3 {1-0 Ivanova,S (2049)-Gholami Orimi,A (1817) Wch U16 Girls 2013 (11)}) 9... dxe5 {[%emt 0:03:00]} 10. dxe5 {[%emt 0:00:23]} (10. Nxe5 Nxe5 11. dxe5 Nc6 $11) 10... Nc5 {[%emt 0:01:18] Inhibits Qd3.} 11. Qe2 {[%emt 0:00:22]} (11. b4 Qxd1 12. Rxd1 Ncd7 $11) 11... a5 {[%emt 0:00:27]} 12. Rd1 {[%emt 0:02:12]} Nbd7 {[%emt 0:00:50]} 13. Bf4 {[%emt 0:00:31] White is much more active.} Qc8 {[%emt 0:01:24]} 14. Rd4 {[%emt 0:05:29]} (14. Ng5 {keeps more tension.} g6 15. Qe3 Rd8 16. Qg3) 14... f5 {[%emt 0:01:31]} 15. Rad1 {[%emt 0:01:43]} Bc6 {[%emt 0:12:24]} 16. R4d2 {[%emt 0:03:09]} Qb7 {[%emt 0:03:26] [#]} ({Better is} 16... Bb7 $14) 17. Nd5 $1 {[%emt 0:02:54][%mdl 512]} Rae8 $1 $14 {[%emt 0:06:34]} (17... exd5 18. cxd5 Ba4 19. Bxa4 Nxa4 20. d6 cxd6 21. exd6 $16) 18. Nxe7+ {[%emt 0:04:42]} Rxe7 {[%emt 0:00:11]} 19. h4 {[%emt 0:04:23]} Ne4 {[%emt 0:04:00] A dynamic duo of knights.} 20. Rd4 {[%emt 0:01:30]} Ndc5 {[%emt 0:00:35]} (20... Nec5 $14) 21. Ne1 {[%emt 0:00:28] And now f3 would win.} Na6 {[%emt 0:06:08]} 22. f3 {[%emt 0:01:05]} Nec5 {[%emt 0:01:10]} 23. b3 {[%emt 0:00:45]} Nb4 {[%emt 0:01:00]} 24. Bb1 {[%emt 0:00:15]} Be8 $1 {[%emt 0:00:20]} 25. R4d2 {[%emt 0:01:05]} h6 {[%emt 0:02:31]} 26. Qe3 {[%emt 0:00:54]} Nd7 {[%emt 0:06:28]} (26... Nc6 $14) 27. Qc3 {[%emt 0:02:08]} (27. a3 $16 Nc6 28. Nd3) 27... Qc6 {[%emt 0:02:01][%cal Ob4d5]} 28. Qe3 {[%emt 0:05:33]} (28. Qd4 $14) 28... Qc5 {[%emt 0:00:53]} (28... Qb7 $1 $11) 29. Qxc5 {[%emt 0:00:13]} bxc5 {[%emt 0:00:29]} (29... Nxc5 $14 30. Nc2 Nc6) 30. Be3 $16 {[%emt 0:00:43][%cal Bf4e3,Be3f2,Bf2e1][%mdl 32]} f4 {[%emt 0:00:28]} 31. Bf2 {[%emt 0:00:07]} Nc6 {[%emt 0:01:18]} 32. Nd3 {[%emt 0:00:30]} Bg6 {[%emt 0:04:05]} 33. Nxc5 {[%emt 0:00:53]} Ndxe5 {[%emt 0:00:14]} 34. Ne4 {[%emt 0:03:02]} (34. Bxg6 $16 Nxg6 35. Rd7) 34... Rb8 $14 {[%emt 0:01:23]} 35. Re2 {[%emt 0:01:27]} Kf7 {[%emt 0:02:54]} 36. Be1 {[%emt 0:00:46]} Rd7 {[%emt 0:01:14] [#] Black cannot hold the game after this.} ({Black should play} 36... a4 $14) 37. Rxd7+ $1 $18 {[%emt 0:00:22]} Nxd7 {[%emt 0:00:05] [#]} 38. Ng5+ $1 {[%emt 0:00:51][%mdl 576] Discovered Attack} hxg5 {[%emt 0:00:34]} 39. Bxg6+ {[%emt 0:00:06][%mdl 64] Deflection} Kxg6 {[%emt 0:04:33]} 40. Rxe6+ {[%emt 0:00:15]} Kf5 {[%emt 0:00:48]} 41. Rxc6 {[%emt 0:00:09][%mdl 4096] Endgame KRB-KRN} a4 {[%emt 0:00:51]} 42. Rxc7 {[%emt 0:01:52]} (42. bxa4 Rb1 43. Kf1 Ne5 44. Rxc7 Nd3 $14) 42... axb3 {[%emt 0:00:20]} 43. axb3 {[%emt 0:00:08]} (43. Rxd7 $2 b2 44. Rd5+ (44. Rxg7 $2 b1=Q $19) 44... Ke6 $19) 43... Ne5 {[%emt 0:00:41]} 44. Bc3 {[%emt 0:01:02] Hoping for Rc5.} (44. Rxg7 gxh4 45. Bxh4 Rxb3 $16) 44... Nd3 {[%emt 0:02:46] Wards off Rc5+} (44... Rxb3 45. Bxe5 Kxe5 46. Rc5+ (46. Rxg7 gxh4 47. Rg5+ Kd4 $18) (46. hxg5 Kf5 $18) 46... Kf6 47. Rxg5 Rd3) 45. Rd7 {[%emt 0:01:22]} (45. Rxg7 gxh4 46. Rd7 Nc1 $18) 45... Nc1 {[%emt 0:00:17]} 46. Rd5+ {[%emt 0:00:08]} (46. Rxg7 Ne2+ 47. Kh2 Nxc3 $14) (46. Bxg7 gxh4 47. Rd5+ Kg6 $18) 46... Ke6 {[%emt 0:00:09]} 47. Re5+ {[%emt 0:01:54]} (47. hxg5 Ne2+ 48. Kf2 Nxc3 $17) ({Less strong is} 47. Bxg7 gxh4 48. Rb5 Rg8 $18) 47... Kd6 $2 {[%emt 0:00:20]} (47... Kf7 48. b4 (48. Rxg5 Ne2+ 49. Kf2 Nxc3 $11) 48... Na2) 48. Re1 {[%emt 0:42:09] Weighted Error Value: White=0.19 (very precise) /Black=0.35} ({Weaker is} 48. Rxg5 Ne2+ 49. Kh2 Nxc3 $11) 1-0